fUST/lending_fUST_20251212
["ID","MTS","AMOUNT","RATE_DAILY","PERIOD"]
[398357934,1765551638573,-548.68,0.00042465,120]
[398357935,1765551638627,-740.84,0.00042465,120]
[398357936,1765551638685,-2056.85456689,0.00042465,60]
[398357937,1765551638740,-500.0,0.00042465,120]
[398357938,1765551638794,-500.0,0.00042465,120]
[398357939,1765551638846,-501.92753182,0.00042465,120]
[398357940,1765551638901,-500.0,0.00042465,120]
[398357941,1765551638958,-551.69,0.00042465,120]
[398357942,1765551639012,-500.0,0.00042465,120]
[398357943,1765551639066,-500.0,0.00042465,120]
[398357944,1765551639120,-500.0,0.00042465,120]
[398357945,1765551639174,-1148.95,0.00042465,120]
[398357946,1765551639229,-500.0,0.00042465,120]
[398357947,1765551639282,-518.77,0.00042465,120]
[398357948,1765551639343,-500.0,0.00042465,120]
[398357949,1765551639406,-500.0,0.00042465,120]
[398357950,1765551639468,-500.0,0.00042465,120]
[398357951,1765551639530,-500.0,0.00042465,120]
[398357952,1765551639590,-500.0,0.00042465,120]
[398357953,1765551639662,-500.0,0.00042465,120]
[398357954,1765551639725,-751.84,0.00042465,120]
[398357955,1765551639787,-500.0,0.00042465,120]
[398357956,1765551639845,-500.0,0.00042465,120]
[398357957,1765551639912,-632.222431,0.00042465,120]
[398357958,1765551639968,-500.0,0.00042465,120]
[398357959,1765551640024,-500.0,0.00042465,120]
[398357960,1765551640080,-692.4,0.00042465,120]
[398357961,1765551640136,-500.0,0.00042465,120]
[398357962,1765551640197,-500.0,0.00042465,120]
[398357963,1765551640318,-500.0,0.00042465,120]
[398357964,1765551640370,-913.5,0.00042465,120]
[398357965,1765551640421,-500.0,0.00042465,120]
[398357966,1765551640472,-1021.23,0.00042465,120]
[398357967,1765551640523,-500.0,0.00042465,120]
[398357968,1765551640573,-500.0,0.00042465,120]
[398357969,1765551640624,-500.0,0.00042465,120]
[398357970,1765551640675,-695.87,0.00042465,120]
[398357971,1765551640725,-1804.72,0.00042465,120]
[398357972,1765551640774,-500.0,0.00042465,120]
[398357973,1765551640824,-942.83,0.00042465,120]
[398357974,1765551640873,-500.0,0.00042465,120]
[398357975,1765551640921,-713.52,0.00042465,120]
[398357976,1765551640976,-517.36,0.00042465,120]
[398357977,1765551641025,-500.0,0.00042465,120]
[398357978,1765551641075,-1064.91,0.00042465,120]
[398357979,1765551641126,-500.0,0.00042465,120]
[398357980,1765551641176,-500.0,0.00042465,120]
[398357981,1765551641226,-500.0,0.00042465,120]
[398357982,1765551641276,-500.0,0.00042465,120]
[398357983,1765551641326,-888.56,0.00042465,120]
[398357984,1765551641378,-500.0,0.00042465,120]
[398357985,1765551641431,-500.0,0.00042465,120]
[398357986,1765551641483,-500.0,0.00042465,120]
[398357987,1765551641535,-1772.02,0.00042465,120]
[398357988,1765551641586,-500.0,0.00042465,120]
[398357989,1765551641638,-1170.54,0.00042465,120]
[398357990,1765551641694,-1155.19,0.00042465,120]
[398357991,1765551641746,-527.78,0.00042465,120]
[398357992,1765551641801,-500.0,0.00042465,120]
[398357993,1765551641855,-835.63,0.00042465,120]
[398357994,1765551641909,-504.46,0.00042465,120]
[398357995,1765551641964,-500.0,0.00042465,120]
[398357996,1765551642020,-501.17822034,0.00042465,120]
[398357997,1765551642072,-500.0,0.00042465,120]
[398357998,1765551642123,-500.0,0.00042465,120]
[398357999,1765551642177,-500.0,0.00042465,60]
[398358000,1765551642234,-500.94530544,0.00042465,120]
[398358001,1765551642287,-500.0,0.00042465,120]
[398358002,1765551642339,-947.43,0.00042465,120]
[398358003,1765551642390,-2498.81,0.00042465,120]
[398358004,1765551642448,-1513.84,0.00042465,120]
[398358005,1765551642501,-500.0,0.00042465,120]
[398358006,1765551642553,-1972.67,0.00042465,120]
[398358007,1765551642605,-500.0,0.00042465,120]
[398358008,1765551642656,-500.0,0.00042465,120]
[398358009,1765551642709,-500.0,0.00042465,120]
[398358010,1765551642760,-500.0,0.00042465,120]
[398358011,1765551642812,-555.39,0.00042465,120]
[398358012,1765551642863,-650.15,0.00042465,120]
[398358013,1765551642914,-503.40180564,0.00042465,120]
[398358014,1765551642966,-500.0,0.00042465,120]
[398358015,1765551643017,-546.48,0.00042465,120]
[398358016,1765551643069,-500.0,0.00042465,120]
[398358017,1765551643120,-500.0,0.00042465,120]
[398358018,1765551643174,-500.0,0.00042465,120]
[398358019,1765551643228,-500.0,0.00042465,120]
[398358020,1765551643281,-500.0,0.00042465,120]
[398358021,1765551643334,-500.0,0.00042465,90]
[398358022,1765551643387,-955.21,0.00042465,120]
[398358023,1765551643443,-500.0,0.00042465,120]
[398358024,1765551643498,-608.9,0.00042465,120]
[398358025,1765551643550,-583.48,0.00042465,120]
[398358026,1765551643602,-500.0,0.00042465,120]
[398358027,1765551643653,-500.0,0.00042465,120]
[398358028,1765551643708,-500.0,0.00042465,120]
[398358029,1765551643760,-500.0,0.00042465,120]
[398358030,1765551643810,-646.24,0.00042465,120]
[398358031,1765551643862,-550.65,0.00042465,120]
[398358032,1765551643914,-1006.28,0.00042465,120]
[398358033,1765551643969,-817.12,0.00042465,120]
[398358034,1765551644019,-686.53,0.00042465,120]
[398358035,1765551644071,-500.0,0.00042465,120]
[398358036,1765551644122,-500.0,0.00042465,120]
[398358037,1765551644174,-561.43,0.00042465,120]
[398358038,1765551644227,-500.0,0.00042465,120]
[398358039,1765551644278,-1349.21,0.00042465,120]
[398358040,1765551644328,-1514.23,0.00042465,120]
[398358041,1765551644379,-501.64645843,0.00042465,120]
[398358042,1765551644430,-608.7,0.00042465,120]
[398358043,1765551644482,-518.44,0.00042465,120]
[398358044,1765551644532,-994.05,0.00042465,120]
[398358045,1765551644585,-2454.51,0.00042465,120]
[398358046,1765551644637,-500.0,0.00042465,120]
[398358047,1765551644690,-500.0,0.00042465,120]
[398358048,1765551644741,-491.71240218,0.00042465,120]
[398358049,1765551644790,-570.77,0.00042465,120]
[398358050,1765551644840,-500.0,0.00042465,120]
[398358051,1765551644890,-1335.36,0.00042465,120]
[398358052,1765551644944,-539.52,0.00042465,120]
[398358053,1765551644994,-500.0,0.00042465,120]
[398358054,1765551645044,-500.0,0.00042465,120]
[398358055,1765551645094,-500.0,0.00042465,120]
[398358056,1765551645144,-854.37,0.00042465,120]
[398358057,1765551645196,-500.0,0.00042465,120]
[398358058,1765551645249,-283.78272462,0.00042465,120]
[398358059,1765551645407,-500.0,0.00042465,120]
[398358060,1765551645460,-2412.18,0.00042465,120]
[398358061,1765551645512,-500.0,0.00042465,120]
[398358062,1765551645572,-500.0,0.00042465,120]
[398358063,1765551645623,-500.0,0.00042465,120]
[398358064,1765551645676,-323.53912951,0.00042465,120]
[398358065,1765551645731,-970.8,0.00042465,120]
[398358066,1765551645780,-500.0,0.00042465,120]
[398358067,1765551645830,-501.56413362,0.00042465,120]
[398358068,1765551645880,-2056.95,0.00042465,120]
[398358069,1765551645933,-1338.78,0.00042465,30]
[398358070,1765551645985,-502.13568082,0.00042465,120]
[398358071,1765551646036,-4365.33,0.00042465,120]
[398358072,1765551646086,-593.25,0.00042465,120]
[398358073,1765551646141,-624.89,0.00042465,120]
[398358074,1765551646197,-500.0,0.00042465,120]
[398358075,1765551646248,-500.0,0.00042465,120]
[398358076,1765551646299,-500.0,0.00042465,120]
[398358077,1765551646351,-674.18,0.00042465,120]
[398358078,1765551646405,-1621.4,0.00042465,120]
[398358079,1765551646457,-9298.49,0.00042465,120]
[398358080,1765551646512,-2019.34,0.00042465,120]
[398358081,1765551646567,-500.0,0.00042465,120]
[398358082,1765551646622,-500.0,0.00042465,120]
[398358083,1765551646675,-574.39,0.00042465,120]
[398358084,1765551646728,-2090.21,0.00042465,120]
[398358085,1765551646779,-500.0,0.00042465,120]
[398358086,1765551646831,-500.0,0.00042465,60]
[398358087,1765551646881,-500.0,0.00042465,120]
[398358088,1765551646934,-11563.12,0.00042465,120]
[398358089,1765551646990,-500.0,0.00042465,120]
[398358090,1765551647039,-1587.78,0.00042465,120]
[398358092,1765551647088,-443.73637413,0.00042465,120]
[398358093,1765551647140,-2435.58,0.00042465,120]
[398358094,1765551647192,-500.0,0.00042465,120]
[398358095,1765551647244,-500.0,0.00042465,120]
[398358096,1765551647296,-707.91,0.00042465,120]
[398358097,1765551647350,-690.72,0.00042465,120]
[398358098,1765551647404,-4131.11,0.00042465,120]
[398358099,1765551647456,-745.28,0.00042465,120]
[398358100,1765551647511,-984.45,0.00042465,120]
[398358101,1765551647566,-839.26,0.00042465,120]
[398358102,1765551647619,-730.44,0.00042465,120]
[398358103,1765551647669,-1652.54,0.00042465,120]
[398358104,1765551647722,-500.0,0.00042465,120]
[398358105,1765551647771,-1679.33,0.00042465,120]
[398358106,1765551647820,-500.0,0.00042465,120]
[398358107,1765551647873,-500.0,0.00042465,120]
[398358108,1765551647927,-1996.1,0.00042465,120]
[398358109,1765551647984,-2110.54,0.00042465,120]
[398358110,1765551648038,-500.0,0.00042465,120]
[398358111,1765551648094,-423.12203203,0.00042465,120]
[398358112,1765551648154,-500.0,0.00042465,120]
[398358113,1765551648214,-9001.55,0.00042465,120]
[398358114,1765551648272,-1010.87,0.00042465,120]
[398358115,1765551648330,-2303.62,0.00042465,120]
[398358116,1765551648386,-2906.18,0.00042465,120]
[398358117,1765551648441,-500.0,0.00042465,120]
[398358118,1765551648499,-1592.05,0.00042465,120]
[398358119,1765551648558,-999.97,0.00042465,120]
[398358120,1765551648612,-22718.21,0.00042465,120]
[398358121,1765551648665,-1833.54,0.00042465,120]
[398358122,1765551648718,-500.0,0.00042465,120]
[398358123,1765551648784,-27650.2,0.00042465,120]
[398358124,1765551648840,-594.7,0.00042465,120]
[398358125,1765551648896,-500.0,0.00042465,120]
[398358126,1765551648951,-500.0,0.00042465,120]
[398358127,1765551649006,-2595.28,0.00042465,120]
[398358128,1765551649060,-633.92,0.00042465,120]
[398358129,1765551649113,-604.71,0.00042465,120]
[398358130,1765551649167,-996.1,0.00042465,120]
[398358131,1765551649231,-719.66,0.00042465,120]
[398358132,1765551649293,-768.67,0.00042465,30]
[398358133,1765551649351,-537.19,0.00042465,120]
[398358134,1765551649408,-2790.78,0.00042465,120]
[398358135,1765551649465,-5160.6,0.00042465,120]
[398358136,1765551649520,-500.0,0.00042465,120]
[398358137,1765551649576,-654.67,0.00042465,120]
[398358138,1765551649630,-536.21,0.00042465,120]
[398358139,1765551649685,-1472.63,0.00042465,120]
[398358140,1765551649737,-753.89,0.00042465,120]
[398358141,1765551649791,-1063.01,0.00042465,120]
[398358142,1765551649842,-992.13,0.00042465,120]
[398358143,1765551649892,-1270.95,0.00042465,120]
[398358144,1765551650171,-500.0,0.00042465,120]
[398358145,1765551650226,-885.72,0.00042465,120]
[398358146,1765551650279,-1062.43,0.00042465,120]
[398358147,1765551650333,-1650.53,0.00042465,120]
[398358148,1765551650389,-500.0,0.00042465,120]
[398358149,1765551650443,-500.0,0.00042465,120]
[398358150,1765551650496,-3845.54,0.00042465,120]
[398358151,1765551650550,-541.01,0.00042465,120]
[398358152,1765551650603,-1922.65,0.00042465,120]
[398358153,1765551650656,-2038.3,0.00042465,120]
[398358154,1765551650708,-500.0,0.00042465,120]
[398358155,1765551650760,-2413.47,0.00042465,120]
[398358156,1765551650812,-766.61,0.00042465,120]
[398358157,1765551650864,-2900.12,0.00042465,120]
[398358158,1765551650915,-1672.8,0.00042465,120]
[398358159,1765551650967,-784.74,0.00042465,120]
[398358160,1765551651020,-500.0,0.00042465,120]
[398358161,1765551651072,-500.0,0.00042465,120]
[398358162,1765551651124,-4558.32,0.00042465,120]
[398358163,1765551651178,-1098.06,0.00042465,120]
[398358164,1765551651235,-658.88,0.00042465,120]
[398358165,1765551651294,-6758.05,0.00042465,120]
[398358166,1765551651354,-500.0,0.00042465,120]
[398358167,1765551651415,-1461.11,0.00042465,120]
[398358168,1765551651468,-500.0,0.00042465,120]
[398358169,1765551651521,-1192.44,0.00042465,120]
[398358170,1765551651576,-4560.77,0.00042465,120]
[398358171,1765551651630,-500.0,0.00042465,120]
[398358172,1765551651687,-500.0,0.00042465,120]
[398358173,1765551651746,-7371.62,0.00042465,120]
[398358174,1765551651800,-660.64,0.00042465,120]
[398358175,1765551651852,-1412.34,0.00042465,120]
[398358176,1765551651904,-617.1,0.00042465,120]
[398358177,1765551651961,-500.0,0.00042465,120]
[398358178,1765551652016,-500.0,0.00042465,120]
[398358179,1765551652073,-500.0,0.00042465,120]
[398358180,1765551652128,-2376.95,0.00042465,120]
[398358181,1765551652180,-532.46,0.00042465,120]
[398358182,1765551652235,-771.36,0.00042465,120]
[398358183,1765551652287,-500.0,0.00042465,120]
[398358184,1765551652339,-2107.15,0.00042465,30]
[398358185,1765551652392,-500.0,0.00042465,120]
[398358186,1765551652444,-804.28,0.00042465,120]
[398358187,1765551652495,-791.49,0.00042465,120]
[398358188,1765551652545,-1920.43,0.00042465,120]
[398358189,1765551652598,-1848.03,0.00042465,120]
[398358190,1765551652651,-500.0,0.00042465,120]
[398358191,1765551652704,-1315.71,0.00042465,120]
[398358192,1765551652755,-571.16,0.00042465,120]
[398358193,1765551652803,-1559.94,0.00042465,120]
[398358194,1765551652854,-760.32,0.00042465,120]
[398358195,1765551652907,-5221.94,0.00042465,120]
[398358196,1765551652960,-500.0,0.00042465,120]
[398358197,1765551653015,-500.0,0.00042465,120]
[398358198,1765551653071,-500.0,0.00042465,120]
[398358199,1765551653123,-822.46,0.00042465,120]
[398358200,1765551653179,-6806.92,0.00042465,120]
[398358201,1765551653232,-500.0,0.00042465,120]
[398358202,1765551653288,-579.78294048,0.00042465,120]
[398358203,1765551653343,-1301.35,0.00042465,120]
[398358204,1765551653397,-2232.790113,0.00042465,120]
[398358205,1765551653456,-500.0,0.00042465,120]
[398358206,1765551653509,-2816.98,0.00042465,120]
[398358207,1765551653567,-500.0,0.00042465,120]
[398358208,1765551653621,-807.71,0.00042465,120]
[398358209,1765551653677,-1165.13,0.00042465,30]
[398358210,1765551653793,-500.0,0.00042465,120]
[398358211,1765551653846,-559.07,0.00042465,120]
[398358212,1765551653906,-500.0,0.00042465,120]
[398358213,1765551653968,-500.66,0.00042465,120]
[398358214,1765551654023,-500.0,0.00042465,120]
[398358215,1765551654075,-830.63,0.00042465,120]
[398358216,1765551654127,-500.0,0.00042465,120]
[398358217,1765551654184,-500.0,0.00042465,120]
[398358218,1765551654238,-500.0,0.00042465,120]
[398358219,1765551654291,-1357.98,0.00042465,120]
[398358220,1765551654349,-4984.88,0.00042465,120]
[398358221,1765551654405,-1656.13,0.00042465,120]
[398358222,1765551654466,-1033.11,0.00042465,120]
[398358223,1765551654519,-500.0,0.00042465,120]
[398358224,1765551654573,-697.36,0.00042465,120]
[398358225,1765551654629,-677.54,0.00042465,120]
[398358226,1765551654684,-500.0,0.00042465,120]
[398358227,1765551654738,-3932.31,0.00042465,120]
[398358228,1765551654787,-991.44,0.00042465,120]
[398358229,1765551654838,-1507.22,0.00042465,120]
[398358230,1765551654891,-500.0,0.00042465,120]
[398358231,1765551654945,-500.0,0.00042465,120]
[398358232,1765551654998,-2032.65,0.00042465,120]
[398358233,1765551655052,-500.0,0.00042465,120]
[398358234,1765551655106,-3703.69,0.00042465,120]
[398358235,1765551655158,-1830.44,0.00042465,120]
[398358236,1765551655213,-500.0,0.00042465,120]
[398358237,1765551655265,-500.0,0.00042465,120]
[398358238,1765551655318,-986.77,0.00042465,120]
[398358239,1765551655370,-3704.65,0.00042465,120]
[398358240,1765551655425,-500.0,0.00042465,120]
[398358241,1765551655478,-500.0,0.00042465,120]
[398358242,1765551655529,-7458.75,0.00042465,120]
[398358243,1765551655580,-1053.64,0.00042465,120]
[398358244,1765551655635,-1240.96,0.00042465,120]
[398358245,1765551655686,-601.86,0.00042465,120]
[398358246,1765551655738,-857.66,0.00042465,120]
[398358247,1765551655790,-509.78,0.00042465,120]
[398358248,1765551655842,-528.05,0.00042465,120]
[398358249,1765551655899,-476.724665,0.00042465,120]
[398358250,1765551655952,-500.0,0.00042465,120]
[398358251,1765551656005,-1644.47,0.00042465,120]
[398358252,1765551656061,-4461.41,0.00042465,120]
[398358253,1765551656115,-500.0,0.00042465,120]
[398358254,1765551656181,-3000.0,0.0004247,120]
[398358255,1765551656243,-596.0,0.00042633,90]
[398358256,1765551656306,-500.0,0.00042739,120]
[398358257,1765551656359,-577.85,0.00042739,120]
[398358258,1765551656415,-500.0,0.00042739,120]
[398358259,1765551656469,-500.0,0.00042739,120]
[398358260,1765551656523,-500.0,0.00042739,120]
[398358261,1765551656577,-175.95312829,0.00042739,120]
[398358262,1765551656631,-500.0,0.00042739,120]
[398358263,1765551656685,-500.0,0.00042739,120]
[398358264,1765551656739,-500.0,0.00042739,120]
[398358265,1765551656791,-500.0,0.00042739,120]
[398358266,1765551656845,-500.0,0.00042739,120]
[398358267,1765551656899,-500.0,0.00042739,120]
[398358268,1765551656953,-500.0,0.00042739,120]
[398358269,1765551657005,-194.01621696,0.00042739,120]
[398358270,1765551657057,-1023.24,0.00042739,120]
[398358271,1765551657111,-500.0,0.00042739,120]
[398358272,1765551657164,-500.0,0.00042739,120]
[398358273,1765551657217,-739.99,0.00042739,120]
[398358274,1765551657273,-653.44,0.00042739,120]
[398358275,1765551657328,-1602.86,0.00042739,120]
[398358276,1765551657383,-500.0,0.00042739,120]
[398358277,1765551657438,-500.0,0.00042739,120]
[398358278,1765551657494,-500.0,0.00042739,30]
[398358279,1765551657562,-500.0,0.00042739,120]
[398358280,1765551657614,-500.0,0.00042739,120]
[398358281,1765551657668,-1083.15,0.00042739,120]
[398358282,1765551657721,-82.67608314,0.00042739,120]
[398358284,1765551831423,5000.0,0.00019,120]
[398358285,1765551856581,5000.0,0.00019,120]
[398358289,1765552005105,-313.72046547,9.752e-05,2]
[398358305,1765552232589,-244.27953453,9.654e-05,2]
[398358306,1765552232599,-150.0,9.753e-05,2]
[398358307,1765552232612,-154.64,0.0001,2]
[398358308,1765552232621,-154.64,0.000101,2]
[398358309,1765552232630,-154.64,0.000103,2]
[398358310,1765552232639,-154.64,0.000104,2]
[398358311,1765552232648,-38.55604077,0.000106,2]
[398358312,1765552232659,-116.08395923,0.000106,2]
[398358313,1765552232668,-154.64,0.000107,2]
[398358314,1765552232677,-154.64,0.000108,2]
[398358316,1765552232686,-171.214,0.00010937,2]
[398358318,1765552232695,-154.64,0.00011,2]
[398358320,1765552232703,-154.64,0.000111,2]
[398358321,1765552232713,-500.0,0.00011159,2]
[398358322,1765552232722,-294.24873981,0.00011159,2]
[398358323,1765552232731,-257.41430453,0.00011159,2]
[398358324,1765552232739,-500.0,0.00011159,2]
[398358325,1765552232748,-500.0,0.00011159,2]
[398358326,1765552232757,-481.45733769,0.00011159,2]
[398358327,1765552232765,-154.64,0.000112,2]
[398358328,1765552232774,-600.0,0.00011382,2]
[398358329,1765552232783,-154.64,0.000114,2]
[398358330,1765552232792,-154.64,0.000115,2]
[398358331,1765552232801,-154.64,0.000117,2]
[398358332,1765552232810,-177.0,0.00011753,2]
[398358333,1765552232819,-154.64,0.000118,2]
[398358334,1765552232827,-154.64,0.000119,2]
[398358335,1765552232836,-154.64,0.000121,2]
[398358336,1765552232845,-154.64,0.000122,2]
[398358337,1765552232854,-154.64,0.000123,2]
[398358338,1765552232863,-154.64,0.000125,2]
[398358339,1765552232872,-720.0,0.0001252,2]
[398358340,1765552232880,-154.64,0.000126,2]
[398358341,1765552232890,-415.0,0.00012745,2]
[398358342,1765552232898,-154.64,0.000128,2]
[398358343,1765552232907,-154.64,0.000129,2]
[398358344,1765552232916,-154.64,0.00013,2]
[398358345,1765552232925,-500.0,0.00013273,2]
[398358346,1765552232934,-468.30985803,0.00013273,2]
[398358347,1765552232942,-500.0,0.00013273,2]
[398358348,1765552232952,-500.0,0.00013698,2]
[398358349,1765552232960,-629.02815423,0.00013698,2]
[398358350,1765552232970,-500.0,0.00013698,2]
[398358351,1765552232978,-500.0,0.00013698,2]
[398358352,1765552232987,-500.0,0.00013698,2]
[398358353,1765552232996,-435.17279594,0.00013698,2]
[398358354,1765552233011,-64.82720406,0.00013698,2]
[398358355,1765552233019,-500.0,0.00013698,2]
[398358356,1765552233028,-500.0,0.00013699,2]
[398358357,1765552233037,-500.0,0.00013699,2]
[398358358,1765552233045,-500.0,0.00013699,2]
[398358359,1765552233054,-500.0,0.00013699,2]
[398358360,1765552233062,-500.0,0.00013699,2]
[398358361,1765552233071,-274.39545307,0.00013699,2]
[398358362,1765552233081,-160.0,0.00013699,2]
[398358363,1765552233090,-204.0,0.00013753,2]
[398358364,1765552233099,-864.0,0.00013772,2]
[398358365,1765552233109,-534.7555565,0.00013821,2]
[398358366,1765552233118,-1000.0,0.00013821,2]
[398358367,1765552233127,-1000.0,0.00014247,2]
[398358368,1765552233136,-283.85327747,0.00014247,2]
[398358369,1765552233145,-1000.0,0.00014247,2]
[398358370,1765552233154,-1000.0,0.00014247,2]
[398358371,1765552233163,-260.0,0.00014247,2]
[398358372,1765552233171,-1500.0,0.00014368,2]
[398358373,1765552233180,-1139.80698152,0.00014795,2]
[398358374,1765552233189,-1500.0,0.00014795,2]
[398358375,1765552233198,-1500.0,0.00014795,2]
[398358376,1765552233207,-360.0,0.00014795,2]
[398358377,1765552233216,-42775.86567427,0.00014882,2]
[398358378,1765552233227,-476.52,0.00014882,2]
[398358379,1765552233243,-507.2010556,0.00014882,2]
[398358422,1765552238768,-154.64,0.000132,2]
[398358423,1765552238779,-154.64,0.000133,2]
[398358424,1765552238789,-154.64,0.000134,2]
[398358425,1765552238799,-154.64,0.000136,2]
[398358426,1765552238808,-154.64,0.000137,2]
[398358427,1765552238819,-154.64,0.000139,2]
[398358428,1765552238828,-154.64,0.00014,2]
[398358429,1765552238839,-370.52,0.00014882,2]
[398358430,1765552238852,-55869.89327013,0.00014882,2]
[398358431,1765552238864,-2000.0,0.00014916,2]
[398358432,1765552238874,-1000.0,0.0001515,2]
[398358433,1765552238884,-460.0,0.00015342,2]
[398358434,1765552238893,-1217.79265093,0.00015342,2]
[398358435,1765552238903,-2000.0,0.00015342,2]
[398358436,1765552238913,-2139.8318198,0.00015464,2]
[398358437,1765552238923,-415.0,0.00015745,2]
[398358438,1765552238933,-231.0,0.00015753,2]
[398358439,1765552238943,-190.0,0.00015753,3]
[398358440,1765552238956,-560.0,0.0001589,2]
[398358441,1765552238967,-2500.0,0.0001589,2]
[398358442,1765552238979,-160.43557243,0.000159,2]
[398358443,1765552238988,-3000.0,0.00016,2]
[398358445,1765552239000,-3000.0,0.0001601,2]
[398358447,1765552239011,-3000.0,0.0001602,2]
[398358449,1765552239020,-3000.0,0.0001603,2]
[398358452,1765552239034,-3000.0,0.0001604,2]
[398358455,1765552239048,-3000.0,0.0001605,2]
[398358457,1765552239059,-3000.0,0.0001606,2]
[398358459,1765552239068,-3000.0,0.0001607,2]
[398358460,1765552239078,-3000.0,0.0001608,2]
[398358461,1765552239088,-3000.0,0.0001609,2]
[398358462,1765552239099,-3000.0,0.000161,2]
[398358463,1765552239110,-3000.0,0.0001611,2]
[398358464,1765552239120,-3000.0,0.0001612,2]
[398358465,1765552239131,-3000.0,0.0001613,2]
[398358466,1765552239140,-3000.0,0.0001614,2]
[398358467,1765552239150,-926.79638532,0.0001615,2]
[398358468,1765552239162,-2073.20361468,0.0001615,2]
[398358469,1765552239172,-1378.35405676,0.0001616,2]
[398358470,1765552239206,-1621.64594324,0.0001616,2]
[398358471,1765552239216,-1103.70504985,0.0001617,2]
[398358495,1765552240889,-399.699644,0.00015068,2]
[398358496,1765552241185,-500.300356,0.0001617,2]
[398358497,1765552241197,-400.19930188,0.0001617,2]
[398358550,1765553349203,-559.0,9.703e-05,2]
[398358551,1765553349227,-150.0,9.851e-05,2]
[398358552,1765553349254,-559.0,9.9e-05,2]
[398358553,1765553349276,-85339.35916851,0.00011,7]
[398358554,1765553349297,-500.0,0.00011643,2]
[398358555,1765553349319,-177.0,0.00011851,2]
[398358556,1765553349341,-295.30641892,0.00013073,2]
[398358557,1765553349363,-415.0,0.00013109,2]
[398358558,1765553349388,-151.63,0.000135,2]
[398358559,1765553349413,-500.0,0.00013698,2]
[398358560,1765553349438,-500.0,0.00013698,2]
[398358561,1765553349459,-2190.214599,0.00013699,2]
[398358562,1765553349480,-500.0,0.00013699,2]
[398358563,1765553349506,-151.63,0.000137,2]
[398358564,1765553349532,-151.63,0.000138,2]
[398358565,1765553349555,-204.0,0.00013851,2]
[398358566,1765553349581,-151.63,0.00014,2]
[398358567,1765553349602,-1000.0,0.00014247,2]
[398358568,1765553349623,-1500.0,0.00014795,2]
[398358569,1765553349643,-851.97379469,0.00015,10]
[398358570,1765553349664,-2000.0,0.00015342,2]
[398358571,1765553349685,-159.46764179,0.000155,2]
[398358572,1765553349708,-160.0,0.00015808,3]
[398358573,1765553349730,-231.0,0.00015851,2]
[398358574,1765553349752,-2500.0,0.0001589,2]
[398358575,1765553349785,-415.0,0.00016109,2]
[398358576,1765553349814,-995.79529227,0.0001617,2]
[398358577,1765553349840,-3000.0,0.0001618,2]
[398358578,1765553349865,-3000.0,0.0001619,2]
[398358579,1765553349891,-500.0,0.00016199,2]
[398358580,1765553349918,-500.0,0.00016199,2]
[398358581,1765553349946,-220.16192641,0.00016199,2]
[398358582,1765553349973,-5823.44456,0.000162,2]